fUSD/lending_fUSD_20240501
["ID","MTS","AMOUNT","RATE_DAILY","PERIOD"]
[325167843,1714546257278,-1631.79,0.00012931,2]
[325167844,1714546257289,-479.52,0.00012935,2]
[325167845,1714546257298,-150.0,0.0001295,2]
[325167846,1714546257307,-2124.68523051,0.00012968,2]
[325167847,1714546257316,-150.0,0.00012977,2]
[325167848,1714546257326,-8132.8600776,0.0001298,2]
[325167849,1714546257335,-6746.137503,0.0001298,2]
[325167850,1714546257344,-5359.4149285,0.0001298,2]
[325167851,1714546257354,-3972.692354,0.0001298,2]
[325167852,1714546257366,-27093.3487956,0.0001298,2]
[325167853,1714546257375,-22473.6998608,0.0001298,2]
[325167854,1714546257384,-17854.050926,0.0001298,2]
[325167855,1714546257393,-13234.4019912,0.0001298,2]
[325167856,1714546257404,-150.0,0.00012988,2]
[325167857,1714546257412,-528.0753144,0.00012989,2]
[325167858,1714546257421,-459.260322,0.00012989,2]
[325167859,1714546257430,-390.4453295,0.00012989,2]
[325167860,1714546257439,-321.6303371,0.00012989,2]
[325167861,1714546257448,-252.8153447,0.00012989,2]
[325167862,1714546257457,-184.0003522,0.00012989,2]
[325167863,1714546257467,-8288.2436498,0.00012989,2]
[325167864,1714546257476,-7225.1863121,0.00012989,2]
[325167865,1714546257486,-6162.1289744,0.00012989,2]
[325167866,1714546257496,-5099.0716367,0.00012989,2]
[325167867,1714546257505,-4036.014299,0.00012989,2]
[325167868,1714546257515,-2972.9569613,0.00012989,2]
[325167869,1714546257524,-224.4794282,0.00012989,2]
[325167870,1714546257534,-224.4794282,0.00012989,2]
[325167871,1714546257543,-224.4794282,0.00012989,2]
[325167872,1714546257553,-224.4794282,0.00012989,2]
[325167873,1714546257562,-224.4794282,0.00012989,2]
[325167874,1714546257572,-224.4794282,0.00012989,2]
[325167875,1714546257581,-3355.0296847,0.00012989,2]
[325167876,1714546257591,-2926.5725242,0.00012989,2]
[325167877,1714546257600,-2498.1153636,0.00012989,2]
[325167878,1714546257610,-2069.658203,0.00012989,2]
[325167879,1714546257619,-1641.2010425,0.00012989,2]
[325167880,1714546257629,-1212.7438819,0.00012989,2]
[325167881,1714546257638,-187.8506066,0.00012989,2]
[325167882,1714546257650,-10906.3052266,0.00012989,2]
[325167883,1714546257659,-9519.5826521,0.00012989,2]
[325167884,1714546257667,-36332.6466652,0.00012989,2]
[325167885,1714546257677,-31712.9977304,0.00012989,2]
[325167886,1714546257687,-174.93204165,0.00012998,2]
[325167887,1714546257696,-9869.77818624,0.00012998,2]
[325167888,1714546257706,-897.95083425,0.00012998,2]
[325167889,1714546257715,-497.68349969,0.00012998,2]
[325167890,1714546257724,-155.18648239,0.00012998,2]
[325167891,1714546257733,-155.502148,0.00012998,2]
[325167892,1714546257743,-156.08581283,0.00012998,2]
[325167893,1714546257753,-2999.41731454,0.00012998,2]
[325167894,1714546257762,-975.57266143,0.00012998,2]
[325167895,1714546257771,-155.37517047,0.00012998,2]
[325167896,1714546257780,-78017.89727358,0.00012998,2]
[325167897,1714546257790,-278.367412,0.00012998,2]
[325167898,1714546257800,-406.127007,0.00012998,2]
[325167899,1714546257810,-406.127007,0.00012998,2]
[325167900,1714546257819,-151.0,0.00012998,2]
[325167901,1714546257828,-151.0,0.00012998,2]
[325167902,1714546257838,-366.513142,0.00012998,2]
[325167903,1714546257847,-239.255565,0.00012998,2]
[325167904,1714546257858,-286.97504,0.00012998,2]
[325167905,1714546257867,-239.255565,0.00012998,2]
[325167906,1714546257876,-366.513142,0.00012998,2]
[325167907,1714546257886,-151.0,0.00012998,2]
[325167908,1714546257895,-151.0,0.00012998,2]
[325167909,1714546257904,-151.0,0.00012998,2]
[325167910,1714546257913,-151.0,0.00012998,2]
[325167911,1714546257923,-151.0,0.00012998,2]
[325167912,1714546257932,-159.429016,0.00012998,2]
[325167913,1714546257941,-151.0,0.00012998,2]
[325167914,1714546257950,-151.0,0.00012998,2]
[325167915,1714546257959,-421.590797,0.00012998,2]
[325167916,1714546257968,-151.0,0.00012998,2]
[325167917,1714546257978,-421.590797,0.00012998,2]
[325167918,1714546257987,-150.01,0.00012999,2]
[325167919,1714546257996,-5852.08008115,0.00012999,2]
[325167920,1714546258005,-2760873.53874722,0.00013,2]
[325167921,1714546258237,-500.0,0.00011232,2]
[325167922,1714546258247,-99.64,0.00011506,2]
[325167923,1714546258259,-400.36,0.00011506,2]
[325167924,1714546258269,-500.0,0.00011506,2]
[325167925,1714546258281,-500.0,0.0001178,2]
[325167926,1714546258291,-338795.10099706,0.00013,2]
[325167927,1714546258303,-2511.76795,0.00013,2]
[325167928,1714546258314,-658.999999,0.00013,2]
[325167929,1714546258327,-309.31751331,0.00013,2]
[325167930,1714546258341,-474.07118195,0.00013,2]
[325167931,1714546258352,-306.99918047,0.00013,2]
[325167932,1714546258364,-15407.09288932,0.00013,2]
[325167933,1714546258378,-1012.47273016,0.00013,2]
[325167934,1714546259705,-500.80121004,0.00010958,2]
[325167935,1714546259715,-500.0,0.00010958,2]
[325167936,1714546259725,-500.0,0.00010958,2]
[325167937,1714546259735,-500.0,0.00010958,2]
[325167938,1714546259745,-500.0,0.00010958,2]
[325167939,1714546259754,-500.0,0.00010958,2]
[325167940,1714546259764,-500.0,0.00011232,2]
[325167941,1714546259773,-500.0,0.00011232,2]
[325167942,1714546259782,-512.72632593,0.00011506,2]
[325167943,1714546259792,-500.0,0.00012054,2]
[325167944,1714546259801,-472.87652303,0.00012328,2]
[325167945,1714546259811,-188.13198859,0.000129,2]
[325167946,1714546259820,-916.66395241,0.00013,2]
[325167947,1714546259840,-500.0,0.00011232,2]
[325167948,1714546259849,-5458.2,0.00013,2]
[325167949,1714546259860,-5992.00000001,0.00013,2]
[325167950,1714546260580,-500.0,0.00010958,2]
[325167951,1714546260603,-500.0,0.00010958,2]
[325167952,1714546260627,-12.47273016,0.00010958,2]
[325168003,1714546401339,205.0,9.8e-05,2]
[325168004,1714546433500,470.09721768,0.0001,2]
[325168005,1714546433528,75.94947932,0.0001,2]
[325168016,1714546851131,431.57,9.049e-05,2]
[325168018,1714547107244,150.11053158,9.954e-05,2]
[325168020,1714547209819,150.0,9.95e-05,2]
[325168045,1714547433596,-271.05628702,0.00010099,2]
[325168047,1714547433610,-268.60656706,0.00010099,2]
[325168050,1714547433619,-242.62038332,0.000101,2]
[325168052,1714547433628,-179.12,0.00010451,2]
[325168053,1714547433639,-1089.13074962,0.00010624,2]
[325168055,1714547433652,-3379.3589383,0.00010624,2]
[325168058,1714547433661,-3301.72389009,0.00010625,2]
[325168060,1714547433672,-1114.6531695,0.00010625,2]
[325168062,1714547433687,-250.0,0.00010626,2]
[325168063,1714547433697,-334.32456428,0.00010626,2]
[325168065,1714547433708,-585.0,0.00010626,2]
[325168067,1714547433720,-371.6925449,0.00010626,2]
[325168071,1714547433732,-2145.53289082,0.00010626,2]
[325168073,1714547433742,-600.0,0.00010647,2]
[325168075,1714547433751,-152.19,0.00010708,2]
[325168077,1714547433760,-166.21191825,0.00010758,2]
[325168079,1714547433771,-6284.6491,0.00010858,2]
[325168080,1714547433780,-326.99,0.00010861,2]
[325168081,1714547433789,-468.07017232,0.00010958,2]
[325168082,1714547433800,-500.0,0.00010958,2]
[325168083,1714547433809,-500.0,0.00010958,2]
[325168084,1714547433818,-500.0,0.00010958,2]
[325168085,1714547433827,-84.20419207,0.00010958,2]
[325168086,1714547434168,-299.652355,0.00010958,2]
[325168089,1714547434187,-116.14345293,0.00010958,2]
[325168091,1714547434197,-462.01547326,0.00010958,2]
[325168093,1714547434209,-37.98452674,0.00010958,2]
[325168094,1714547434218,-254.67716686,0.00010958,2]
[325168095,1714547434230,-245.32283314,0.00010958,2]
[325168096,1714547434239,-500.0,0.00010958,2]
[325168097,1714547434249,-69.60630662,0.00010958,2]
[325168098,1714547434260,-430.39369338,0.00010958,2]
[325168099,1714547434271,-500.0,0.00010958,2]
[325168100,1714547434280,-500.0,0.00010958,2]
[325168101,1714547434289,-500.0,0.00010958,2]
[325168102,1714547434299,-500.0,0.00010958,2]
[325168103,1714547434308,-500.0,0.00010958,2]
[325168104,1714547434317,-500.0,0.00010958,2]
[325168105,1714547434326,-500.0,0.00010958,2]
[325168106,1714547434335,-500.0,0.00010958,2]
[325168108,1714547434346,-500.0,0.00010958,2]
[325168109,1714547434355,-500.0,0.00010958,2]
[325168111,1714547434364,-500.0,0.00010958,2]
[325168113,1714547434374,-500.0,0.00010958,2]
[325168115,1714547434383,-500.0,0.00010958,2]
[325168117,1714547434392,-500.0,0.00010958,2]
[325168119,1714547434402,-500.0,0.00010958,2]
[325168121,1714547434411,-500.0,0.00010958,2]
[325168123,1714547434421,-500.0,0.00010958,2]
[325168126,1714547434435,-500.0,0.00010958,2]
[325168127,1714547434444,-500.0,0.00010958,2]
[325168130,1714547434454,-500.68385143,0.00010958,2]
[325168131,1714547434463,-501.12113314,0.00010958,2]
[325168133,1714547434472,-500.0,0.00010958,2]
[325168136,1714547434482,-500.0,0.00010958,2]
[325168138,1714547434491,-500.0,0.00010958,2]
[325168140,1714547434500,-500.0,0.00010958,2]
[325168142,1714547434510,-500.0,0.00010958,2]
[325168144,1714547434519,-500.0,0.00010958,2]
[325168145,1714547434529,-500.0,0.00010958,2]
[325168147,1714547434538,-254.54132205,0.00010958,2]
[325168150,1714547434551,-245.45867795,0.00010958,2]
[325168152,1714547434560,-500.0,0.00010958,2]
[325168153,1714547434570,-500.0,0.00010958,2]
[325168156,1714547434579,-500.0,0.00010958,2]
[325168157,1714547434588,-23.15734285,0.00010958,2]
[325168160,1714547434607,-476.84265715,0.00010958,2]
[325168162,1714547434616,-69.29237194,0.00010958,2]
[325168164,1714547434629,-405.9316513,0.00010958,2]
[325168166,1714547434638,-503.79698695,0.00010958,2]
[325168168,1714547434649,-568.45169533,0.00010958,2]
[325168170,1714547434658,-500.0,0.00010958,2]
[325168172,1714547434668,-500.0,0.00010958,2]
[325168174,1714547434683,-482.19482643,0.00010958,2]
[325168176,1714547434701,-19.51332669,0.00010958,2]
[325168178,1714547434710,-500.0,0.00010958,2]
[325168180,1714547434720,-500.0,0.00010958,2]
[325168182,1714547434732,-153.02667331,0.00010958,2]
[325168184,1714547434743,-346.97332669,0.00010958,2]
[325168186,1714547434753,-142.48598743,0.00010958,2]
[325168678,1714547439353,-357.51401257,0.00010958,2]
[325168682,1714547439582,-502.5843932,0.00010958,2]
[325168684,1714547439592,-500.0,0.00010958,2]
[325168686,1714547439607,-500.0,0.00010958,2]
[325168688,1714547439616,-500.0,0.00010958,2]
[325168690,1714547439626,-500.0,0.00010958,2]
[325168692,1714547439635,-500.0,0.00010958,2]
[325168694,1714547439648,-500.62886711,0.00010958,2]
[325168696,1714547439658,-306.93270026,0.00010958,2]
[325168698,1714547439667,-500.0,0.00010958,2]
[325168700,1714547439677,-747.9,0.00010958,2]
[325168702,1714547439692,-500.0,0.00010958,2]
[325168704,1714547439701,-500.0,0.00010958,2]
[325168706,1714547439711,-500.0,0.00010958,2]
[325168708,1714547439720,-500.0,0.00010958,2]
[325168710,1714547439730,-500.0,0.00010958,2]
[325168712,1714547439740,-500.0,0.00010958,2]
[325168714,1714547439749,-393.03845234,0.00010958,2]
[325168716,1714547439759,-500.0,0.00010958,2]
[325168718,1714547439768,-500.0,0.00010958,2]
[325168720,1714547439778,-621.76,0.00010958,2]
[325168722,1714547439788,-500.0,0.00010958,2]
[325168724,1714547439798,-500.0,0.00010958,2]
[325168725,1714547439808,-500.0,0.00010958,2]
[325168726,1714547439818,-500.0,0.00010958,2]
[325168727,1714547439827,-500.0,0.00010958,2]
[325168728,1714547439836,-500.0,0.00010958,2]
[325168729,1714547439846,-500.0,0.00010958,2]
[325168730,1714547439856,-500.0,0.00010958,2]
[325168731,1714547439865,-500.0,0.00010958,2]
[325168732,1714547439875,-500.0,0.00010958,2]
[325168733,1714547439884,-500.0,0.00010958,2]
[325168734,1714547439893,-500.0,0.00010958,2]
[325168736,1714547439903,-500.0,0.00010958,2]
[325168738,1714547439913,-425.26992511,0.00010958,2]
[325168740,1714547439923,-500.0,0.00010958,2]
[325168742,1714547439937,-500.0,0.00010958,2]
[325168744,1714547439946,-500.0,0.00010958,2]
[325168746,1714547439955,-500.0,0.00010958,2]
[325168748,1714547439964,-500.0,0.00010958,2]
[325168750,1714547439974,-814.02,0.00010958,2]
[325168752,1714547439983,-200.0,0.00010959,2]
[325168754,1714547439992,-200.0,0.00011,2]
[325168756,1714547440001,-2872.8686,0.00011131,2]
[325168758,1714547440011,-1697.51,0.00011147,2]
[325168760,1714547440021,-154.35,0.00011221,2]
[325168761,1714547440030,-310.11,0.00011226,2]
[325168764,1714547440039,-500.0,0.0001123,2]
[325168765,1714547440049,-592.91,0.0001123,2]
[325168767,1714547440059,-1776.24,0.0001123,2]
[325168769,1714547440068,-500.0,0.0001123,2]
[325168772,1714547440078,-500.0,0.0001123,2]
[325168774,1714547440087,-578.76,0.0001123,2]
[325168776,1714547440097,-500.0,0.0001123,2]
[325168777,1714547440106,-500.0,0.0001123,2]
[325168780,1714547440116,-500.0,0.0001123,2]
[325168782,1714547440126,-500.0,0.0001123,2]
[325168784,1714547440135,-500.0,0.0001123,2]
[325168786,1714547440144,-500.0,0.0001123,2]
[325168788,1714547440154,-411.28329246,0.0001123,2]
[325168790,1714547440164,-1503.61,0.0001123,2]
[325168792,1714547440173,-500.0,0.0001123,2]
[325168794,1714547440188,-500.0,0.0001123,2]
[325168796,1714547440198,-896.96,0.0001123,2]
[325168798,1714547440207,-1193.01,0.0001123,2]
[325168800,1714547440217,-1146.11,0.0001123,2]
[325168802,1714547440227,-500.0,0.0001123,2]
[325168804,1714547440236,-1496.13,0.0001123,2]
[325168806,1714547440246,-500.0,0.0001123,2]
[325168808,1714547440255,-558.34,0.0001123,2]
[325168810,1714547440265,-500.0,0.0001123,2]
[325168812,1714547440275,-1605.7,0.0001123,2]
[325168814,1714547440284,-593.99772681,0.0001123,2]
[325168816,1714547440293,-500.0,0.0001123,2]
[325168818,1714547440303,-573.69,0.0001123,2]
[325168820,1714547440312,-1285.89,0.0001123,2]
[325168822,1714547440322,-553.21,0.0001123,2]
[325168824,1714547440332,-500.0,0.0001123,2]
[325168826,1714547440341,-500.0,0.0001123,2]
[325168828,1714547440351,-361.73172108,0.0001123,2]
[325168830,1714547440361,-500.0,0.0001123,2]
[325168832,1714547440370,-500.0,0.0001123,2]
[325168834,1714547440380,-806.94,0.0001123,2]
[325168836,1714547440389,-500.0,0.0001123,2]
[325168838,1714547440399,-500.0,0.0001123,2]
[325168840,1714547440407,-1127.5,0.0001123,2]
[325168842,1714547440417,-415.83690906,0.0001123,2]
[325168844,1714547440435,-258.78309094,0.0001123,2]
[325168846,1714547440445,-550.31,0.0001123,2]
[325168850,1714547440455,-198.19080679,0.0001123,2]
[325168853,1714547440467,-1025.46919321,0.0001123,2]
[325168856,1714547440476,-5405.0,0.0001123,2]
[325168859,1714547440485,-5754.83,0.0001123,2]
[325168862,1714547440494,-741.85,0.0001123,2]
[325168865,1714547440504,-500.0,0.0001123,2]
[325168868,1714547440513,-450.66448392,0.0001123,2]
[325168871,1714547440522,-581.98,0.0001123,2]
[325168873,1714547440532,-500.0,0.0001123,2]
[325168876,1714547440541,-500.0,0.0001123,2]
[325168879,1714547440551,-500.0,0.0001123,2]
[325168882,1714547440560,-500.0,0.0001123,2]
[325168885,1714547440569,-500.0,0.0001123,2]
[325168887,1714547440578,-500.0,0.0001123,2]
[325168890,1714547440587,-500.0,0.00011231,2]
[325168892,1714547440598,-500.0,0.00011231,2]
[325168894,1714547440608,-500.0,0.00011231,2]
[325168896,1714547440618,-518.57424522,0.00011231,2]
[325168898,1714547440628,-500.0,0.00011231,2]
[325168900,1714547440637,-500.0,0.00011231,2]
[325168902,1714547440649,-500.0,0.00011231,2]
[325168904,1714547440659,-500.0,0.00011231,2]
[325168906,1714547440668,-500.0,0.00011231,2]
[325168908,1714547440677,-500.0,0.00011231,2]
[325168910,1714547440693,-500.0,0.00011231,2]
[325168912,1714547440702,-500.0,0.00011231,2]
[325168914,1714547440711,-500.0,0.00011231,2]
[325168916,1714547440721,-500.0,0.00011231,2]
[325168918,1714547440731,-500.0,0.00011231,2]
[325168920,1714547440741,-500.0,0.00011231,2]
[325168922,1714547440751,-500.0,0.00011231,2]
[325168924,1714547440760,-500.0,0.00011231,2]
[325168926,1714547440770,-500.0,0.00011231,2]
[325168928,1714547440779,-500.0,0.00011231,2]
[325168930,1714547440789,-500.0,0.00011231,2]
[325168932,1714547440798,-500.0,0.00011231,2]
[325168934,1714547440807,-500.0,0.00011231,2]
[325168936,1714547440816,-500.0,0.00011231,2]
[325168938,1714547440827,-500.0,0.00011231,2]
[325168940,1714547440836,-500.0,0.00011231,2]
[325168941,1714547440846,-500.0,0.00011231,2]
[325168944,1714547440856,-500.0,0.00011231,2]
[325168945,1714547440866,-500.0,0.00011231,2]
[325168947,1714547440875,-500.0,0.00011231,2]
[325168950,1714547440885,-500.0,0.00011231,2]
[325168951,1714547440894,-500.0,0.00011231,2]
[325168953,1714547440903,-500.0,0.00011231,2]
[325168956,1714547440913,-500.0,0.00011231,2]
[325168958,1714547440923,-500.0,0.00011231,2]
[325168959,1714547440936,-500.0,0.00011231,2]
[325168961,1714547440946,-500.0,0.00011231,2]
[325168962,1714547440956,-500.0,0.00011231,2]
[325168963,1714547440965,-500.0,0.00011231,2]
[325168964,1714547440975,-500.0,0.00011231,2]
[325168965,1714547440984,-500.0,0.00011231,2]
[325168966,1714547440994,-500.0,0.00011231,2]
[325168967,1714547441002,-521.93,0.00011231,2]
[325168968,1714547441012,-500.0,0.00011231,2]
[325168969,1714547441022,-500.0,0.00011231,2]
[325168970,1714547441032,-500.0,0.00011231,2]
[325168971,1714547441041,-632.42342527,0.00011231,2]
[325168972,1714547441051,-500.0,0.00011231,2]
[325168973,1714547441060,-218.74387868,0.00011231,2]
[325168974,1714547441069,-200.86098261,0.00011231,2]
[325168975,1714547441078,-500.0,0.00011231,2]
[325168976,1714547441087,-501.93494779,0.00011231,2]
[325168977,1714547441097,-500.0,0.00011231,2]
[325168978,1714547441106,-500.0,0.00011231,2]
[325168979,1714547441115,-500.0,0.00011231,2]
[325168980,1714547441125,-500.0,0.00011231,2]
[325168981,1714547441134,-500.0,0.00011231,2]
[325168982,1714547441143,-500.0,0.00011231,2]
[325168983,1714547441156,-500.0,0.00011231,2]
[325168984,1714547441166,-500.0,0.00011231,2]
[325168985,1714547441175,-500.0,0.00011231,2]
[325168986,1714547441188,-500.0,0.00011231,2]
[325168987,1714547441197,-500.0,0.00011231,2]
[325168988,1714547441207,-502.03236166,0.00011231,2]
[325168989,1714547441216,-500.0,0.00011231,2]
[325168990,1714547441226,-500.0,0.00011231,2]
[325168991,1714547441234,-507.38677632,0.00011231,2]
[325168992,1714547441243,-500.0,0.00011231,2]
[325168994,1714547441253,-500.0,0.00011231,2]
[325168996,1714547441262,-500.0,0.00011231,2]
[325168998,1714547441272,-500.0,0.00011231,2]
[325169000,1714547441281,-500.0,0.00011231,2]
[325169002,1714547441291,-500.0,0.00011231,2]
[325169004,1714547441300,-500.0,0.00011231,2]
[325169005,1714547441309,-500.0,0.00011231,2]
[325169008,1714547441319,-500.0,0.00011231,2]
[325169009,1714547441330,-500.0,0.00011231,2]
[325169012,1714547441340,-500.0,0.00011231,2]
[325169014,1714547441349,-500.0,0.00011231,2]
[325169015,1714547441359,-500.0,0.00011231,2]
[325169017,1714547441368,-500.0,0.00011231,2]
[325169020,1714547441379,-500.0,0.00011231,2]
[325169022,1714547441388,-501.89985377,0.00011231,2]
[325169024,1714547441397,-435.39342234,0.00011231,2]
[325169026,1714547441412,-68.70798773,0.00011231,2]
[325169028,1714547441421,-500.0,0.00011231,2]
[325169030,1714547441430,-500.0,0.00011231,2]
[325169032,1714547441449,-500.0,0.00011231,2]
[325169034,1714547441458,-500.0,0.00011231,2]
[325169036,1714547441468,-500.0,0.00011231,2]
[325169038,1714547441477,-144.38938243,0.00011231,2]
[325169041,1714547441490,-319.8,0.00011231,2]
[325169043,1714547441501,-35.81061757,0.00011231,2]
[325169045,1714547441510,-500.0,0.00011231,2]
[325169047,1714547441520,-482.00293753,0.00011231,2]
[325169049,1714547441532,-4255.28706247,0.00011231,2]
[325169051,1714547441542,-500.0,0.00011231,2]
[325169053,1714547441551,-500.0,0.00011231,2]
[325169055,1714547441561,-1455.81,0.00011231,2]
[325169057,1714547441570,-500.0,0.00011231,2]
[325169059,1714547441580,-500.0,0.00011231,2]
[325169061,1714547441589,-500.0,0.00011231,2]
[325169063,1714547441603,-500.0,0.00011231,2]
[325169065,1714547441612,-500.0,0.00011231,2]
[325169068,1714547441622,-500.0,0.00011231,2]
[325169070,1714547441631,-500.0,0.00011231,2]
[325169072,1714547441645,-500.75311785,0.00011231,2]
[325169074,1714547441659,-360.78297184,0.00011231,2]
[325169076,1714547441671,-139.21702816,0.00011231,2]
[325169078,1714547441680,-500.0,0.00011231,2]
[325169080,1714547441696,-500.0,0.00011231,2]
[325169082,1714547441705,-500.0,0.00011231,2]
[325169084,1714547441715,-500.0,0.00011231,2]
[325169086,1714547441726,-500.0,0.00011231,2]
[325169088,1714547441736,-500.0,0.00011231,2]
[325169090,1714547441746,-500.0,0.00011231,2]
[325169092,1714547441756,-500.0,0.00011231,2]
[325169094,1714547441765,-500.0,0.00011231,2]
[325169096,1714547441774,-500.0,0.00011231,2]
[325169098,1714547441784,-500.0,0.00011231,2]
[325169100,1714547441793,-500.0,0.00011231,2]
[325169101,1714547441802,-2386.64,0.00011231,2]
[325169104,1714547441812,-460.34297187,0.00011231,2]
[325169106,1714547441824,-39.65702813,0.00011231,2]
[325169108,1714547441833,-500.0,0.00011231,2]
[325169110,1714547441843,-187.32102231,0.00011231,2]
[325169112,1714547441852,-500.0,0.00011231,2]
[325169114,1714547441861,-500.0,0.00011231,2]
[325169116,1714547441873,-500.0,0.00011231,2]
[325169118,1714547441885,-370.30632972,0.00011231,2]
[325169121,1714547441898,-500.0,0.00011231,2]
[325169123,1714547441910,-528.66,0.00011231,2]
[325169125,1714547441922,-500.0,0.00011231,2]
[325169128,1714547441940,-344.96446896,0.00011231,2]
[325169130,1714547441956,-155.03553104,0.00011231,2]
[325169132,1714547441967,-503.36624237,0.00011231,2]
[325169135,1714547441978,-500.0,0.00011231,2]
[325169137,1714547441988,-0.52222659,0.00011231,2]
[325169143,1714547442035,-450.0,0.00011231,2]
[325169145,1714547442050,-49.47777341,0.00011231,2]
[325169147,1714547442061,-500.0,0.00011231,2]
[325169150,1714547442073,-502.95161749,0.00011231,2]
[325169151,1714547442084,-500.0,0.00011231,2]
[325169152,1714547442096,-500.0,0.00011231,2]
[325169153,1714547442108,-500.0,0.00011231,2]
[325169154,1714547442120,-488.57341503,0.00011231,2]
[325169155,1714547442135,-11.42658497,0.00011231,2]
[325169156,1714547442149,-500.0,0.00011231,2]
[325169157,1714547442162,-81.86611503,0.00011231,2]
[325169158,1714547442178,-418.13388497,0.00011231,2]
[325169160,1714547442195,-500.0,0.00011231,2]
[325169162,1714547442206,-507.03322364,0.00011231,2]
[325169165,1714547442218,-500.0,0.00011231,2]
[325169167,1714547442228,-500.0,0.00011231,2]
[325169169,1714547442239,-500.0,0.00011231,2]
[325169171,1714547442251,-500.0,0.00011231,2]
[325169173,1714547442262,-500.0,0.00011231,2]
[325169176,1714547442274,-500.0,0.00011231,2]
[325169178,1714547442285,-500.0,0.00011231,2]
[325169180,1714547442297,-500.0,0.00011231,2]
[325169182,1714547442308,-500.63905726,0.00011231,2]
[325169184,1714547442318,-500.0,0.00011231,2]
[325169186,1714547442329,-500.0,0.00011231,2]
[325169189,1714547442340,-500.0,0.00011231,2]
[325169191,1714547442350,-500.0,0.00011231,2]
[325169193,1714547442360,-2877.88,0.00011231,2]
[325169195,1714547442370,-500.0,0.00011231,2]
[325169197,1714547442379,-500.0,0.00011231,2]
[325169199,1714547442391,-500.0,0.00011231,2]
[325169201,1714547442402,-500.0,0.00011231,2]
[325169203,1714547442412,-500.0,0.00011231,2]
[325169206,1714547442424,-500.0,0.00011231,2]
[325169208,1714547442438,-500.0,0.00011231,2]
[325169210,1714547442449,-500.0,0.00011231,2]
[325169212,1714547442460,-500.0,0.00011231,2]
[325169214,1714547442472,-500.0,0.00011231,2]
[325169217,1714547442482,-500.0,0.00011231,2]
[325169219,1714547442493,-500.0,0.00011231,2]
[325169221,1714547442505,-500.0,0.00011231,2]
[325169223,1714547442517,-893.82,0.00011231,2]
[325169225,1714547442528,-500.0,0.00011231,2]
[325169228,1714547442540,-500.0,0.00011231,2]
[325169230,1714547442553,-500.0,0.00011231,2]
[325169232,1714547442565,-500.0,0.00011231,2]
[325169234,1714547442575,-506.30221772,0.00011231,2]
[325169237,1714547442585,-500.0,0.00011231,2]
[325169239,1714547442595,-500.0,0.00011231,2]
[325169241,1714547442607,-500.0,0.00011231,2]
[325169243,1714547442617,-2409.71345592,0.00011231,2]
[325169245,1714547442631,-553.42036038,0.00011231,2]
[325169247,1714547442649,-2893.2361837,0.00011231,2]
[325169250,1714547442661,-500.0,0.00011231,2]
[325169252,1714547442674,-500.0,0.00011231,2]
[325169254,1714547442689,-500.0,0.00011231,2]
[325169256,1714547442701,-500.0,0.00011231,2]
[325169259,1714547442713,-500.0,0.00011231,2]
[325169261,1714547442725,-500.0,0.00011231,2]
[325169263,1714547442735,-500.0,0.00011231,2]
[325169265,1714547442746,-500.0,0.00011231,2]
[325169267,1714547442757,-500.0,0.00011231,2]
[325169269,1714547442768,-500.0,0.00011231,2]